[Event "*** SCC Grand Prix: Titled Tuesday Blitz"]
[Site "Chess.com"]
[Date "2020.06.23"]
[Round "6"]
[White "jaskol95"]
[Black "allvim"]
[Result "1/2-1/2"]
[WhiteElo "2392"]
[BlackElo "2216"]
[TimeControl "180+1"]
[EndTime "11:07:28 PDT"]
[Termination "Game drawn - insufficient material"]

1. d4 {[%clk 0:03:00.9]} 1... Nf6 {[%clk 0:02:59.2]} 2. c4 {[%clk 0:03:00.7]}
2... g6 {[%clk 0:02:59.5]} 3. Nc3 {[%clk 0:02:58.9]} 3... d5 {[%clk 0:02:59.1]}
4. cxd5 {[%clk 0:02:58]} 4... Nxd5 {[%clk 0:03:00]} 5. e4 {[%clk 0:02:58.7]}
5... Nxc3 {[%clk 0:03:00.3]} 6. bxc3 {[%clk 0:02:59.6]} 6... Bg7 {[%clk
0:03:00.5]} 7. Bc4 {[%clk 0:03:00.2]} 7... c5 {[%clk 0:03:00.1]} 8. Ne2 {[%clk
0:03:00.6]} 8... O-O {[%clk 0:03:00.8]} 9. Be3 {[%clk 0:03:00.8]} 9... Nc6
{[%clk 0:03:01.1]} 10. h4 {[%clk 0:02:58.9]} 10... h5 {[%clk 0:03:00.1]} 11. Qd2
{[%clk 0:02:55.7]} 11... Qa5 {[%clk 0:03:00.2]} 12. Rc1 {[%clk 0:02:41.9]} 12...
Rd8 {[%clk 0:02:37]} 13. d5 {[%clk 0:01:55.4]} 13... b5 {[%clk 0:02:25.7]} 14.
Bb3 {[%clk 0:01:51.1]} 14... c4 {[%clk 0:02:24.1]} 15. Bc2 {[%clk 0:01:51.1]}
15... e6 {[%clk 0:02:14.6]} 16. Bg5 {[%clk 0:01:43.2]} 16... f6 {[%clk
0:01:54.4]} 17. Bh6 {[%clk 0:01:41.1]} 17... exd5 {[%clk 0:01:54.7]} 18. Bxg7
{[%clk 0:01:40.9]} 18... Kxg7 {[%clk 0:01:53.6]} 19. exd5 {[%clk 0:01:39.3]}
19... Be6 {[%clk 0:01:35.6]} 20. Nf4 {[%clk 0:01:38.5]} 20... Bf7 {[%clk
0:01:35.9]} 21. O-O {[%clk 0:01:33.3]} 21... Rd6 {[%clk 0:01:16.1]} 22. Qe3
{[%clk 0:01:26.7]} 22... Ne5 {[%clk 0:01:08.8]} 23. Ne6+ {[%clk 0:01:15.4]}
23... Bxe6 {[%clk 0:01:05.3]} 24. dxe6 {[%clk 0:01:16.3]} 24... Qb6 {[%clk
0:00:59.9]} 25. Qg3 {[%clk 0:01:10.5]} 25... Rxe6 {[%clk 0:00:56.2]} 26. Rfe1
{[%clk 0:01:03.1]} 26... Rae8 {[%clk 0:00:55.4]} 27. Kh1 {[%clk 0:00:59.1]}
27... Ng4 {[%clk 0:00:53.3]} 28. Rxe6 {[%clk 0:00:58]} 28... Rxe6 {[%clk
0:00:53.6]} 29. f3 {[%clk 0:00:55]} 29... Nf2+ {[%clk 0:00:37.4]} 30. Kh2 {[%clk
0:00:54.3]} 30... Nd3 {[%clk 0:00:30.5]} 31. Rd1 {[%clk 0:00:49.4]} 31... Qe3
{[%clk 0:00:27.5]} 32. Qc7+ {[%clk 0:00:34.5]} 32... Re7 {[%clk 0:00:27.5]} 33.
Qd6 {[%clk 0:00:35.1]} 33... Nf4 {[%clk 0:00:18.4]} 34. Be4 {[%clk 0:00:29.2]}
34... Rf7 {[%clk 0:00:09.3]} 35. Kg3 {[%clk 0:00:08.6]} 35... Ne2+ {[%clk
0:00:09.1]} 36. Kh2 {[%clk 0:00:09.2]} 36... Nf4 {[%clk 0:00:09.7]} 37. Qd2
{[%clk 0:00:08.7]} 37... Qxd2 {[%clk 0:00:09.4]} 38. Rxd2 {[%clk 0:00:09.6]}
38... g5 {[%clk 0:00:10.1]} 39. g3 {[%clk 0:00:08.3]} 39... Ng6 {[%clk
0:00:09.5]} 40. hxg5 {[%clk 0:00:07.3]} 40... fxg5 {[%clk 0:00:10.4]} 41. Rd6
{[%clk 0:00:07.6]} 41... Ne5 {[%clk 0:00:10.8]} 42. Rd5 {[%clk 0:00:07.7]} 42...
Nxf3+ {[%clk 0:00:10.6]} 43. Kg2 {[%clk 0:00:06.6]} 43... g4 {[%clk 0:00:09.1]}
44. Rxh5 {[%clk 0:00:05.7]} 44... Ne1+ {[%clk 0:00:08.9]} 45. Kg1 {[%clk
0:00:06]} 45... Nf3+ {[%clk 0:00:09.1]} 46. Kg2 {[%clk 0:00:05.7]} 46... Ne1+
{[%clk 0:00:09.4]} 47. Kg1 {[%clk 0:00:06.3]} 47... Nf3+ {[%clk 0:00:09.6]} 48.
Kh1 {[%clk 0:00:06.9]} 48... Nd2 {[%clk 0:00:09.5]} 49. Rh7+ {[%clk 0:00:04.1]}
49... Kf6 {[%clk 0:00:09.2]} 50. Rxf7+ {[%clk 0:00:04.5]} 50... Kxf7 {[%clk
0:00:10.1]} 51. Bf5 {[%clk 0:00:05]} 51... Kf6 {[%clk 0:00:08.6]} 52. Bxg4
{[%clk 0:00:05.4]} 52... Nb1 {[%clk 0:00:09.1]} 53. Bd7 {[%clk 0:00:06]} 53...
Nxc3 {[%clk 0:00:09]} 54. Kg2 {[%clk 0:00:06.6]} 54... a6 {[%clk 0:00:08.9]} 55.
Kf3 {[%clk 0:00:06.8]} 55... b4 {[%clk 0:00:09.6]} 56. Bc8 {[%clk 0:00:06.1]}
56... b3 {[%clk 0:00:09.7]} 57. axb3 {[%clk 0:00:05.3]} 57... cxb3 {[%clk
0:00:10.6]} 58. Bxa6 {[%clk 0:00:05.7]} 58... b2 {[%clk 0:00:05.3]} 59. Bd3
{[%clk 0:00:06.2]} 59... b1=Q {[%clk 0:00:04.5]} 60. Bxb1 {[%clk 0:00:06.4]}
60... Nxb1 {[%clk 0:00:05.4]} 61. Kf4 {[%clk 0:00:07]} 61... Nd2 {[%clk
0:00:05.8]} 62. g4 {[%clk 0:00:07.9]} 62... Nc4 {[%clk 0:00:06.6]} 63. g5+
{[%clk 0:00:08.5]} 63... Kg6 {[%clk 0:00:06.9]} 64. Kg4 {[%clk 0:00:09.4]} 64...
Ne5+ {[%clk 0:00:07.3]} 65. Kf4 {[%clk 0:00:10.3]} 65... Nf7 {[%clk 0:00:07.8]}
66. Kg4 {[%clk 0:00:11.2]} 66... Nxg5 {[%clk 0:00:08.7]} 1/2-1/2

[Event "*** SCC Grand Prix: Titled Tuesday Blitz"]
[Site "Chess.com"]
[Date "2020.06.23"]
[Round "6"]
[White "PredragNikac"]
[Black "otrov-11"]
[Result "1-0"]
[WhiteElo "2222"]
[BlackElo "2378"]
[TimeControl "180+1"]
[EndTime "11:07:30 PDT"]
[Termination "PredragNikac won on time"]

1. d4 {[%clk 0:02:38.9]} 1... Nf6 {[%clk 0:02:57.2]} 2. Nc3 {[%clk 0:02:39.8]}
2... d5 {[%clk 0:02:56.7]} 3. Bg5 {[%clk 0:02:39.8]} 3... Nbd7 {[%clk 0:02:57]}
4. e3 {[%clk 0:02:39.2]} 4... e6 {[%clk 0:02:56.2]} 5. f4 {[%clk 0:02:39.2]}
5... Be7 {[%clk 0:02:54.9]} 6. Bd3 {[%clk 0:02:39]} 6... b6 {[%clk 0:02:54.8]}
7. Nf3 {[%clk 0:02:38.9]} 7... Bb7 {[%clk 0:02:55.3]} 8. O-O {[%clk 0:02:39.3]}
8... Ne4 {[%clk 0:02:55.9]} 9. Bxe7 {[%clk 0:02:38.2]} 9... Qxe7 {[%clk
0:02:56.7]} 10. Bxe4 {[%clk 0:02:37.9]} 10... dxe4 {[%clk 0:02:55.7]} 11. Ne5
{[%clk 0:02:37.5]} 11... O-O-O {[%clk 0:02:44.4]} 12. Nxd7 {[%clk 0:02:31.7]}
12... Rxd7 {[%clk 0:02:44.1]} 13. Qh5 {[%clk 0:02:31.2]} 13... f5 {[%clk
0:02:35]} 14. a3 {[%clk 0:02:28.7]} 14... c5 {[%clk 0:02:21.3]} 15. Rad1 {[%clk
0:02:19.6]} 15... cxd4 {[%clk 0:02:20.1]} 16. Rxd4 {[%clk 0:02:17.8]} 16... Rxd4
{[%clk 0:02:18.3]} 17. exd4 {[%clk 0:02:17.7]} 17... g6 {[%clk 0:02:12.3]} 18.
Qe2 {[%clk 0:02:15]} 18... Rd8 {[%clk 0:02:08.4]} 19. Qc4+ {[%clk 0:02:12.4]}
19... Kb8 {[%clk 0:02:08.7]} 20. Rd1 {[%clk 0:02:09.4]} 20... Bd5 {[%clk
0:02:05.1]} 21. Qb4 {[%clk 0:02:08]} 21... Qxb4 {[%clk 0:02:01.8]} 22. axb4
{[%clk 0:02:07.3]} 22... Rc8 {[%clk 0:02:02.4]} 23. Kf2 {[%clk 0:02:06.1]} 23...
a6 {[%clk 0:01:58.9]} 24. Ke3 {[%clk 0:01:51.9]} 24... Rc4 {[%clk 0:01:43.2]}
25. Ra1 {[%clk 0:01:23.9]} 25... Rxb4 {[%clk 0:01:26]} 26. b3 {[%clk 0:01:21.3]}
26... Kb7 {[%clk 0:01:17.6]} 27. h4 {[%clk 0:01:20.3]} 27... h5 {[%clk
0:01:04.1]} 28. Rh1 {[%clk 0:01:17.5]} 28... Bxb3 {[%clk 0:00:51.4]} 29. cxb3
{[%clk 0:01:15.8]} 29... Rxb3 {[%clk 0:00:52.3]} 30. Rc1 {[%clk 0:01:11]} 30...
Rb2 {[%clk 0:00:47.2]} 31. d5 {[%clk 0:01:07.5]} 31... exd5 {[%clk 0:00:44]} 32.
Nxd5 {[%clk 0:01:07.2]} 32... Rxg2 {[%clk 0:00:43.5]} 33. Rc7+ {[%clk
0:01:06.5]} 33... Kb8 {[%clk 0:00:43.3]} 34. Rg7 {[%clk 0:01:04.1]} 34... b5
{[%clk 0:00:39.6]} 35. Kd4 {[%clk 0:01:02]} 35... Rd2+ {[%clk 0:00:35.2]} 36.
Kc5 {[%clk 0:01:01.6]} 36... Kc8 {[%clk 0:00:23.4]} 37. Rxg6 {[%clk 0:01:01.1]}
37... Kd8 {[%clk 0:00:20.3]} 38. Rf6 {[%clk 0:00:57]} 38... Rc2+ {[%clk
0:00:17.9]} 39. Kd6 {[%clk 0:00:56.2]} 39... Kc8 {[%clk 0:00:17.6]} 40. Rxf5
{[%clk 0:00:54.9]} 40... a5 {[%clk 0:00:17.3]} 41. Re5 {[%clk 0:00:45.6]} 41...
b4 {[%clk 0:00:15.7]} 42. Rxe4 {[%clk 0:00:35.7]} 42... b3 {[%clk 0:00:15.8]}
43. Re1 {[%clk 0:00:18.9]} 43... a4 {[%clk 0:00:10.9]} 44. Nb6+ {[%clk
0:00:18.3]} 44... Kb7 {[%clk 0:00:10]} 45. Nxa4 {[%clk 0:00:19.2]} 45... Rf2
{[%clk 0:00:08.7]} 46. Nc5+ {[%clk 0:00:18.6]} 46... Kb6 {[%clk 0:00:06.7]} 47.
Nxb3 {[%clk 0:00:17]} 47... Rxf4 {[%clk 0:00:06.9]} 48. Rb1 {[%clk 0:00:16.7]}
48... Rxh4 {[%clk 0:00:05.6]} 49. Nc5+ {[%clk 0:00:16.6]} 49... Ka7 {[%clk
0:00:03.7]} 50. Kc6 {[%clk 0:00:17.5]} 50... Rc4 {[%clk 0:00:02.4]} 51. Rb7+
{[%clk 0:00:16.8]} 51... Ka8 {[%clk 0:00:02.3]} 52. Rh7 {[%clk 0:00:17.7]} 52...
Rc1 {[%clk 0:00:00.6]} 53. Kb5 {[%clk 0:00:16.4]} 1-0

[Event "*** SCC Grand Prix: Titled Tuesday Blitz"]
[Site "Chess.com"]
[Date "2020.06.23"]
[Round "6"]
[White "AlexOstrovskiy"]
[Black "GadimbayliA"]
[Result "0-1"]
[WhiteElo "2708"]
[BlackElo "2879"]
[TimeControl "180+1"]
[EndTime "11:07:32 PDT"]
[Termination "GadimbayliA won by resignation"]

1. d4 {[%clk 0:03:00.9]} 1... d5 {[%clk 0:02:57.7]} 2. Bf4 {[%clk 0:02:57.7]}
2... Nf6 {[%clk 0:02:57.5]} 3. e3 {[%clk 0:02:56.7]} 3... Nc6 {[%clk 0:02:58]}
4. c4 {[%clk 0:02:54.9]} 4... e5 {[%clk 0:02:52.7]} 5. dxe5 {[%clk 0:02:21.7]}
5... Ne4 {[%clk 0:02:51.7]} 6. a3 {[%clk 0:02:09.6]} 6... Be6 {[%clk 0:02:50.1]}
7. cxd5 {[%clk 0:02:00.3]} 7... Bxd5 {[%clk 0:02:51]} 8. Nd2 {[%clk 0:01:59.8]}
8... Be7 {[%clk 0:02:45.2]} 9. Nxe4 {[%clk 0:01:47.7]} 9... Bxe4 {[%clk
0:02:46.1]} 10. f3 {[%clk 0:01:48.3]} 10... Bg6 {[%clk 0:02:41.6]} 11. Bc4
{[%clk 0:01:34.2]} 11... O-O {[%clk 0:02:41.5]} 12. Ne2 {[%clk 0:01:28.4]} 12...
Qc8 {[%clk 0:02:41.4]} 13. O-O {[%clk 0:01:23.7]} 13... Rd8 {[%clk 0:02:41.5]}
14. Qe1 {[%clk 0:01:22.1]} 14... Bd3 {[%clk 0:02:38.1]} 15. Bxd3 {[%clk
0:01:16.1]} 15... Rxd3 {[%clk 0:02:39]} 16. Rd1 {[%clk 0:01:16.7]} 16... Qd7
{[%clk 0:02:24.2]} 17. Nc1 {[%clk 0:00:58.9]} 17... Rxd1 {[%clk 0:02:16.2]} 18.
Qxd1 {[%clk 0:00:59.8]} 18... Qe6 {[%clk 0:02:12]} 19. Qb3 {[%clk 0:00:39.8]}
19... Qxb3 {[%clk 0:02:10.6]} 20. Nxb3 {[%clk 0:00:39.7]} 20... Rd8 {[%clk
0:02:11.5]} 21. Rc1 {[%clk 0:00:28.4]} 21... g5 {[%clk 0:01:57.6]} 22. Bg3
{[%clk 0:00:27.9]} 22... Rd3 {[%clk 0:01:53.9]} 23. Nc5 {[%clk 0:00:20.6]} 23...
Bxc5 {[%clk 0:01:44.3]} 24. Rxc5 {[%clk 0:00:21.5]} 24... Rd1+ {[%clk
0:01:44.9]} 25. Kf2 {[%clk 0:00:18.8]} 25... Rd2+ {[%clk 0:01:45.5]} 26. Kf1
{[%clk 0:00:19.2]} 26... Rxb2 {[%clk 0:01:37.6]} 27. e6 {[%clk 0:00:18.8]} 27...
fxe6 {[%clk 0:01:32.6]} 28. Rxg5+ {[%clk 0:00:17.4]} 28... Kf7 {[%clk
0:01:33.2]} 29. Bxc7 {[%clk 0:00:18.3]} 29... Rb3 {[%clk 0:01:29.5]} 30. e4
{[%clk 0:00:10]} 30... Rxa3 {[%clk 0:01:29.4]} 31. h4 {[%clk 0:00:07.6]} 31...
Ra2 {[%clk 0:01:24.4]} 32. Rh5 {[%clk 0:00:07.5]} 32... Kg6 {[%clk 0:01:22.3]}
33. Rg5+ {[%clk 0:00:07.8]} 33... Kf6 {[%clk 0:01:21.3]} 34. Rh5 {[%clk
0:00:08]} 34... Kg6 {[%clk 0:01:08.6]} 35. Rg5+ {[%clk 0:00:08]} 35... Kf6
{[%clk 0:01:09.1]} 36. Rh5 {[%clk 0:00:08.6]} 36... a5 {[%clk 0:01:09.7]} 37.
Rxh7 {[%clk 0:00:08.8]} 37... a4 {[%clk 0:01:08.9]} 38. h5 {[%clk 0:00:09.3]}
38... a3 {[%clk 0:01:06.4]} 39. f4 {[%clk 0:00:05.7]} 39... Ra1+ {[%clk
0:00:48.2]} 40. Kf2 {[%clk 0:00:05.7]} 40... a2 {[%clk 0:00:48.8]} 41. g4 {[%clk
0:00:06.1]} 41... Rf1+ {[%clk 0:00:44.1]} 42. Kg3 {[%clk 0:00:04.7]} 42... Rg1+
{[%clk 0:00:41.9]} 43. Kh4 {[%clk 0:00:03.5]} 43... Rh1+ {[%clk 0:00:34.3]} 44.
Kg3 {[%clk 0:00:03.9]} 44... Rg1+ {[%clk 0:00:34.9]} 45. Kh4 {[%clk 0:00:04.2]}
45... Rxg4+ {[%clk 0:00:12]} 46. Kxg4 {[%clk 0:00:04.3]} 46... e5 {[%clk
0:00:12.7]} 47. Rh6+ {[%clk 0:00:02.4]} 47... Ke7 {[%clk 0:00:12.3]} 48. Rxc6
{[%clk 0:00:02.7]} 48... a1=Q {[%clk 0:00:10.8]} 49. Rg6 {[%clk 0:00:01.9]}
49... exf4 {[%clk 0:00:07]} 50. Bxf4 {[%clk 0:00:02.7]} 50... Qh1 {[%clk
0:00:04.5]} 51. h6 {[%clk 0:00:02.7]} 51... Qxe4 {[%clk 0:00:03.8]} 52. Rg7+
{[%clk 0:00:02.6]} 52... Kf8 {[%clk 0:00:03.8]} 53. Rg5 {[%clk 0:00:03.5]} 53...
Qg2+ {[%clk 0:00:03.3]} 54. Kf5 {[%clk 0:00:03.5]} 54... Qh3+ {[%clk 0:00:03.7]}
55. Kg6 {[%clk 0:00:01.9]} 55... Qe6+ {[%clk 0:00:04.2]} 56. Kh5 {[%clk
0:00:02]} 56... Qf7+ {[%clk 0:00:04.3]} 57. Kg4 {[%clk 0:00:02.9]} 57... Qe6+
{[%clk 0:00:03.9]} 58. Rf5+ {[%clk 0:00:03.8]} 58... Kg8 {[%clk 0:00:04]} 59.
Be5 {[%clk 0:00:03.5]} 59... Kh7 {[%clk 0:00:03.6]} 60. Bf4 {[%clk 0:00:03.5]}
60... Kg6 {[%clk 0:00:03.2]} 61. h7 {[%clk 0:00:03.7]} 61... Qxf5+ {[%clk
0:00:04.1]} 62. Kg3 {[%clk 0:00:02.6]} 62... Kxh7 {[%clk 0:00:04.5]} 0-1

[Event "*** SCC Grand Prix: Titled Tuesday Blitz"]
[Site "Chess.com"]
[Date "2020.06.23"]
[Round "6"]
[White "viditchess"]
[Black "Infernal_XaM"]
[Result "1-0"]
[WhiteElo "3028"]
[BlackElo "2811"]
[TimeControl "180+1"]
[EndTime "11:07:37 PDT"]
[Termination "viditchess won by resignation"]

1. d4 {[%clk 0:03:00.9]} 1... Nf6 {[%clk 0:03:00.2]} 2. c4 {[%clk 0:03:01.1]}
2... e5 {[%clk 0:03:00.8]} 3. dxe5 {[%clk 0:03:01.1]} 3... Ng4 {[%clk
0:03:01.4]} 4. Bf4 {[%clk 0:03:01.8]} 4... g5 {[%clk 0:03:01.3]} 5. Bg3 {[%clk
0:03:01.5]} 5... Bg7 {[%clk 0:03:01.9]} 6. h4 {[%clk 0:03:00.4]} 6... Nxe5
{[%clk 0:03:00.7]} 7. hxg5 {[%clk 0:02:59.6]} 7... Qxg5 {[%clk 0:02:40.4]} 8.
Qc2 {[%clk 0:02:50]} 8... Qg6 {[%clk 0:02:32.3]} 9. Qxg6 {[%clk 0:02:05.6]} 9...
hxg6 {[%clk 0:02:31]} 10. Rxh8+ {[%clk 0:02:06.3]} 10... Bxh8 {[%clk 0:02:30.8]}
11. Nd2 {[%clk 0:01:56.3]} 11... d6 {[%clk 0:02:28.1]} 12. O-O-O {[%clk
0:01:53.5]} 12... Be6 {[%clk 0:02:27.5]} 13. e3 {[%clk 0:01:53]} 13... Nbd7
{[%clk 0:02:03.6]} 14. Ngf3 {[%clk 0:01:51.8]} 14... Nxf3 {[%clk 0:02:02.3]} 15.
Nxf3 {[%clk 0:01:49.8]} 15... Nc5 {[%clk 0:02:01.8]} 16. Nd4 {[%clk 0:01:48.9]}
16... Bd7 {[%clk 0:02:02.1]} 17. f3 {[%clk 0:01:44]} 17... O-O-O {[%clk
0:02:01.5]} 18. Be2 {[%clk 0:01:41.8]} 18... Re8 {[%clk 0:02:00.9]} 19. Kd2
{[%clk 0:01:38.5]} 19... Na4 {[%clk 0:01:30.2]} 20. b3 {[%clk 0:01:01.8]} 20...
Nc3 {[%clk 0:01:27.2]} 21. Kxc3 {[%clk 0:00:45.7]} 21... Rxe3+ {[%clk
0:01:27.7]} 22. Kd2 {[%clk 0:00:45.6]} 22... Bxd4 {[%clk 0:01:22]} 23. Bf2
{[%clk 0:00:45.7]} 23... Re4 {[%clk 0:01:08.6]} 24. fxe4 {[%clk 0:00:43.7]}
24... Bxf2 {[%clk 0:01:08.4]} 25. Rf1 {[%clk 0:00:44.3]} 25... Bd4 {[%clk
0:01:02.7]} 26. Rxf7 {[%clk 0:00:44.4]} 26... Be6 {[%clk 0:00:58]} 27. Rh7
{[%clk 0:00:44.2]} 27... c5 {[%clk 0:00:53.1]} 28. Bf3 {[%clk 0:00:42.9]} 28...
Be5 {[%clk 0:00:52.2]} 29. Re7 {[%clk 0:00:42.5]} 29... Bd7 {[%clk 0:00:50.2]}
30. Rf7 {[%clk 0:00:41.1]} 30... a6 {[%clk 0:00:42]} 31. Be2 {[%clk 0:00:34]}
31... b5 {[%clk 0:00:40.5]} 32. Rh7 {[%clk 0:00:30.7]} 32... b4 {[%clk
0:00:38.9]} 33. Ke3 {[%clk 0:00:29.8]} 33... a5 {[%clk 0:00:39.1]} 34. Rh6
{[%clk 0:00:26.1]} 34... g5 {[%clk 0:00:39.4]} 35. Rg6 {[%clk 0:00:26.2]} 35...
Bf4+ {[%clk 0:00:37.2]} 36. Kf2 {[%clk 0:00:25.9]} 36... Kc7 {[%clk 0:00:35.2]}
37. Rg7 {[%clk 0:00:24.9]} 37... Kd8 {[%clk 0:00:30.3]} 38. g3 {[%clk
0:00:24.9]} 38... Bc1 {[%clk 0:00:29.8]} 39. Bh5 {[%clk 0:00:24.3]} 39... a4
{[%clk 0:00:29.1]} 40. Ke2 {[%clk 0:00:23.1]} 40... a3 {[%clk 0:00:26.3]} 41.
Kd3 {[%clk 0:00:21.6]} 41... Be6 {[%clk 0:00:18.3]} 42. Bg6 {[%clk 0:00:21]}
42... Bh3 {[%clk 0:00:17.4]} 43. Bf5 {[%clk 0:00:20.5]} 43... Bf1+ {[%clk
0:00:17.6]} 44. Kc2 {[%clk 0:00:20.9]} 44... Be3 {[%clk 0:00:17.2]} 45. Rd7+
{[%clk 0:00:21.2]} 45... Ke8 {[%clk 0:00:17.6]} 46. Rxd6 {[%clk 0:00:21.8]}
46... Ke7 {[%clk 0:00:17.9]} 47. Rd1 {[%clk 0:00:22]} 47... Bg2 {[%clk
0:00:15.8]} 48. Kd3 {[%clk 0:00:22]} 48... Bd4 {[%clk 0:00:15.7]} 49. Ke2 {[%clk
0:00:22.5]} 49... Kf6 {[%clk 0:00:14.1]} 50. Kd3 {[%clk 0:00:17]} 50... Ke5
{[%clk 0:00:14.4]} 51. Re1 {[%clk 0:00:15.3]} 51... Bf3 {[%clk 0:00:13.6]} 52.
Rf1 {[%clk 0:00:14.7]} 52... Bg2 {[%clk 0:00:14]} 53. Rb1 {[%clk 0:00:13.1]}
53... Bf3 {[%clk 0:00:14.1]} 54. Rc1 {[%clk 0:00:11.9]} 54... Bg2 {[%clk
0:00:14.2]} 55. Ke2 {[%clk 0:00:12]} 55... Bxe4 {[%clk 0:00:09.4]} 56. Bxe4
{[%clk 0:00:11.9]} 56... Kxe4 {[%clk 0:00:10]} 57. Rf1 {[%clk 0:00:12.7]} 57...
Be5 {[%clk 0:00:08.6]} 58. Rf3 {[%clk 0:00:12.8]} 58... g4 {[%clk 0:00:07.2]}
59. Re3+ {[%clk 0:00:13.1]} 59... Kd4 {[%clk 0:00:07.9]} 60. Rd3+ {[%clk
0:00:13.5]} 60... Ke4 {[%clk 0:00:07.7]} 61. Rd5 {[%clk 0:00:14]} 61... Bd4
{[%clk 0:00:07]} 62. Rg5 {[%clk 0:00:14.1]} 62... Be5 {[%clk 0:00:07.5]} 63.
Rxg4+ {[%clk 0:00:14.5]} 63... Kf5 {[%clk 0:00:08.4]} 64. Kf3 {[%clk 0:00:14.9]}
1-0

[Event "*** SCC Grand Prix: Titled Tuesday Blitz"]
[Site "Chess.com"]
[Date "2020.06.23"]
[Round "6"]
[White "Alexandercs432"]
[Black "goofypenguin96"]
[Result "0-1"]
[WhiteElo "2100"]
[BlackElo "2346"]
[TimeControl "180+1"]
[EndTime "11:07:38 PDT"]
[Termination "goofypenguin96 won by resignation"]

1. e4 {[%clk 0:03:00.9]} 1... e6 {[%clk 0:02:52.8]} 2. d4 {[%clk 0:03:00.2]}
2... d5 {[%clk 0:02:53.7]} 3. Nd2 {[%clk 0:03:00.7]} 3... c5 {[%clk 0:02:53.4]}
4. exd5 {[%clk 0:03:00.5]} 4... Qxd5 {[%clk 0:02:53.7]} 5. Ngf3 {[%clk
0:03:00.9]} 5... cxd4 {[%clk 0:02:53.9]} 6. Bc4 {[%clk 0:03:00.6]} 6... Qd7
{[%clk 0:02:53.6]} 7. O-O {[%clk 0:03:00.4]} 7... Nc6 {[%clk 0:02:53.9]} 8. Nb3
{[%clk 0:02:59.8]} 8... Nf6 {[%clk 0:02:54.3]} 9. Nbxd4 {[%clk 0:02:58.5]} 9...
Nxd4 {[%clk 0:02:55.2]} 10. Nxd4 {[%clk 0:02:56.9]} 10... a6 {[%clk 0:02:55.2]}
11. c3 {[%clk 0:02:50.6]} 11... b5 {[%clk 0:02:52.9]} 12. Bb3 {[%clk 0:02:44.6]}
12... Bb7 {[%clk 0:02:52.4]} 13. Qe2 {[%clk 0:02:38.7]} 13... Be7 {[%clk
0:02:47.2]} 14. Rd1 {[%clk 0:02:29.2]} 14... Qc7 {[%clk 0:02:35.6]} 15. Bg5
{[%clk 0:02:10.4]} 15... O-O {[%clk 0:02:28.6]} 16. Re1 {[%clk 0:02:03.6]} 16...
Kh8 {[%clk 0:02:20.6]} 17. Rad1 {[%clk 0:02:00.5]} 17... Bd6 {[%clk 0:01:52.4]}
18. h3 {[%clk 0:01:49.4]} 18... Ne4 {[%clk 0:01:52.5]} 19. Be3 {[%clk
0:01:35.3]} 19... Rad8 {[%clk 0:01:49.1]} 20. Bc2 {[%clk 0:01:29.5]} 20... Nf6
{[%clk 0:01:46.8]} 21. Bg5 {[%clk 0:01:27.5]} 21... Be7 {[%clk 0:01:41.8]} 22.
Qd3 {[%clk 0:01:05]} 22... g6 {[%clk 0:01:40.7]} 23. Qe2 {[%clk 0:00:51.3]}
23... Nd5 {[%clk 0:01:38.4]} 24. Bxe7 {[%clk 0:00:46.6]} 24... Nxe7 {[%clk
0:01:37.7]} 25. Qe5+ {[%clk 0:00:45.3]} 25... Qxe5 {[%clk 0:01:36.2]} 26. Rxe5
{[%clk 0:00:46.2]} 26... Nc6 {[%clk 0:01:29.3]} 27. Nxc6 {[%clk 0:00:44.9]}
27... Rxd1+ {[%clk 0:01:27.5]} 28. Bxd1 {[%clk 0:00:45.8]} 28... Bxc6 {[%clk
0:01:28.4]} 29. Re2 {[%clk 0:00:17.6]} 29... Rd8 {[%clk 0:01:25.3]} 30. Bb3
{[%clk 0:00:16.5]} 30... Kg7 {[%clk 0:01:23.8]} 31. f3 {[%clk 0:00:12.9]} 31...
a5 {[%clk 0:01:23.5]} 32. a3 {[%clk 0:00:12.1]} 32... a4 {[%clk 0:01:20.7]} 33.
Bc2 {[%clk 0:00:12.3]} 33... Kf6 {[%clk 0:01:16.6]} 34. Kf2 {[%clk 0:00:12.7]}
34... Bd5 {[%clk 0:01:10]} 35. Ke3 {[%clk 0:00:12.6]} 35... Bc4 {[%clk
0:01:07.1]} 36. Rd2 {[%clk 0:00:12.2]} 36... Rxd2 {[%clk 0:01:06.1]} 37. Kxd2
{[%clk 0:00:13.1]} 37... Kg5 {[%clk 0:01:04.1]} 38. Ke3 {[%clk 0:00:12.6]} 38...
Kh4 {[%clk 0:01:02.4]} 39. Kf2 {[%clk 0:00:12.6]} 39... f5 {[%clk 0:00:58.1]}
40. Bb1 {[%clk 0:00:11.6]} 40... e5 {[%clk 0:00:54.2]} 41. Bc2 {[%clk
0:00:11.9]} 41... h5 {[%clk 0:00:50.3]} 42. Bb1 {[%clk 0:00:11.7]} 42... Kg5
{[%clk 0:00:47]} 43. Bc2 {[%clk 0:00:12.2]} 43... h4 {[%clk 0:00:44.3]} 44. Bb1
{[%clk 0:00:12.2]} 44... Kf4 {[%clk 0:00:44.3]} 45. Bc2 {[%clk 0:00:11.3]} 45...
e4 {[%clk 0:00:44.7]} 46. fxe4 {[%clk 0:00:10.9]} 46... fxe4 {[%clk 0:00:45.6]}
47. Bb1 {[%clk 0:00:08.3]} 47... g5 {[%clk 0:00:45.8]} 48. Bc2 {[%clk
0:00:08.3]} 48... e3+ {[%clk 0:00:46]} 49. Ke1 {[%clk 0:00:04.9]} 49... Kg3
{[%clk 0:00:45.6]} 50. Be4 {[%clk 0:00:05.1]} 50... Kf4 {[%clk 0:00:42.9]} 51.
Bc6 {[%clk 0:00:05]} 51... g4 {[%clk 0:00:37.6]} 52. hxg4 {[%clk 0:00:04.6]}
52... Kxg4 {[%clk 0:00:38.5]} 53. Be4 {[%clk 0:00:04.1]} 53... Kg3 {[%clk
0:00:38.4]} 54. Bc6 {[%clk 0:00:03.5]} 54... Bd3 {[%clk 0:00:32.2]} 55. Bb7
{[%clk 0:00:03.7]} 55... Bc4 {[%clk 0:00:30.4]} 56. Bc6 {[%clk 0:00:04.1]} 56...
Kf4 {[%clk 0:00:30.9]} 57. Bb7 {[%clk 0:00:04.6]} 57... Bd3 {[%clk 0:00:30.2]}
58. Bf3 {[%clk 0:00:05.1]} 58... Ke5 {[%clk 0:00:30.2]} 59. Bc6 {[%clk
0:00:05.6]} 59... Kd6 {[%clk 0:00:29.9]} 60. Bf3 {[%clk 0:00:05.4]} 60... Kc5
{[%clk 0:00:30.3]} 61. Bd1 {[%clk 0:00:05]} 61... Kc4 {[%clk 0:00:29.8]} 62. Be2
{[%clk 0:00:04.2]} 62... Bxe2 {[%clk 0:00:29.1]} 63. Kxe2 {[%clk 0:00:04.7]}
63... Kb3 {[%clk 0:00:29.5]} 64. Kxe3 {[%clk 0:00:05.1]} 64... Kxb2 {[%clk
0:00:29.9]} 65. Kf4 {[%clk 0:00:06]} 65... Kxc3 {[%clk 0:00:29.6]} 66. Kg4
{[%clk 0:00:06.9]} 66... b4 {[%clk 0:00:30.1]} 67. Kxh4 {[%clk 0:00:07.8]} 67...
bxa3 {[%clk 0:00:30.2]} 68. g4 {[%clk 0:00:08.7]} 68... a2 {[%clk 0:00:30.8]}
69. g5 {[%clk 0:00:09.6]} 69... a1=Q {[%clk 0:00:31.7]} 70. g6 {[%clk
0:00:10.5]} 70... Qh1+ {[%clk 0:00:31.9]} 71. Kg5 {[%clk 0:00:09.8]} 71... Qg1+
{[%clk 0:00:32.2]} 72. Kf6 {[%clk 0:00:10.7]} 72... a3 {[%clk 0:00:32.2]} 0-1